bitfinex-derivatives/quotes_ETHF0:USTF0_20210402
["timestamp","ask_amount","ask_price","bid_price","bid_amount"]
[1617374656584,0.26368502,2053.3,2050.8,2.90695]
[1617374656786,2.0,2053.2,2050.8,2.90695]
[1617374656986,30.26368502,2053.3,2050.8,2.90695]
[1617374657187,0.26368532,2053.2,2050.8,2.90695]
[1617374657586,2.43676592,2054.0,2050.9,2.0]
[1617374657788,2.43676592,2054.0,2050.8,4.29165]
[1617374658200,2.90695,2051.6,2051.5,2.90695]
[1617374658391,2.90695,2051.6,2050.8,1.3847]
[1617374658998,2.90695,2051.6,2049.0,59.2332]
[1617374659193,2.90695,2051.6,2049.1,2.0]
[1617374659597,2.90695,2051.6,2049.8,0.9781]
[1617374659989,2.90695,2051.6,2049.5,2.0]
[1617374660189,2.90695,2051.6,2050.6,1.666]
[1617374661001,32.0,2053.9,2050.6,1.666]
[1617374661002,2.0,2053.9,2050.6,1.666]
[1617374661189,2.0,2054.9,2050.7,2.0]
[1617374661389,2.0,2055.4,2050.7,2.0]
[1617374661789,3.2575,2055.4,2050.7,2.0]
[1617374661989,30.0,2055.3,2050.7,2.0]
[1617374662192,2.0,2055.2,2052.9,2.90695]
[1617374662390,30.0,2055.3,2052.9,2.90695]
[1617374662590,14.0,2055.5,2052.9,4.59605]
[1617374662990,0.25714297,2055.2,2052.9,4.59605]
[1617374663190,0.25715431,2055.3,2052.9,4.59605]
[1617374663392,2.43776487,2053.1,2052.9,4.59605]
[1617374664194,4.96771487,2053.1,2052.9,4.59605]
[1617374664393,13.9576,2053.0,2052.9,2.90695]
[1617374664595,12.9866,2053.0,2052.9,2.90695]
[1617374665194,12.9866,2053.0,2051.7,2.9708]
[1617374665396,12.9866,2053.0,2051.7,2.0]
[1617374665595,12.9866,2053.0,2051.2,68.7248]
[1617374665796,14.7869,2053.0,2051.2,68.7248]
[1617374666195,14.7869,2053.0,2052.1,2.90695]
[1617374667198,12.9866,2053.0,2052.1,2.90695]
[1617374668199,12.9866,2053.0,2052.8,2.90695]
[1617374668398,12.9866,2053.0,2052.8,4.36815]
[1617374670600,9.9889,2053.0,2052.8,2.90695]
[1617374671001,9.9889,2053.0,2051.6,0.9609]
[1617374671200,9.9889,2053.0,2051.2,68.7248]
[1617374671400,9.9889,2053.0,2051.2,70.7248]
[1617374671603,9.0179,2053.0,2051.2,70.7248]
[1617374671800,9.0179,2053.0,2051.2,68.7248]
[1617374672000,10.8646,2053.0,2051.2,68.7248]
[1617374672200,2.90695,2052.6,2052.4,2.90695]
[1617374673002,9.0179,2053.0,2052.4,2.90695]
[1617374674202,9.0179,2053.0,2051.2,68.7248]
[1617374674203,2.90695,2052.5,2051.9,2.90695]
[1617374674603,2.90695,2052.5,2051.2,68.7248]
[1617374675001,4.78835,2052.5,2051.2,68.7248]
[1617374675203,4.78835,2052.5,2049.9,2.9887]
[1617374675403,4.78835,2052.5,2050.0,5.0]
[1617374676003,16.1867,2052.4,2050.0,5.0]
[1617374676202,16.1867,2052.4,2050.3,2.90695]
[1617374676704,46.1867,2052.4,2050.3,2.90695]
[1617374678204,2.90695,2050.4,2050.3,2.90695]
[1617374678503,3.59095,2050.4,2050.3,2.90695]
[1617374678903,3.59095,2050.4,2050.0,5.0]
[1617374680207,1.655,2050.4,2050.1,2.90695]
[1617374680808,2.0,2052.3,2050.1,2.90695]
[1617374681208,44.1867,2052.4,2050.1,2.90695]
[1617374681209,30.0,2052.2,2050.1,2.90695]
[1617374682412,30.0,2052.2,2050.5,2.90695]
[1617374684114,30.0,2052.3,2050.5,2.90695]
[1617374684314,2.90695,2050.7,2050.5,2.90695]
[1617374685517,1.93595,2050.7,2050.5,2.90695]
[1617374687218,1.9337,2051.4,2050.5,2.90695]
[1617374688020,1.7197,2051.9,2050.5,2.90695]
[1617374688417,1.7197,2051.9,2050.1,2.0]
[1617374688418,1.7197,2051.9,2050.8,2.90695]
[1617374689019,1.7197,2051.9,2050.1,2.0]
[1617374689826,13.9536,2051.8,2050.1,2.0]
[1617374690222,15.8966,2051.8,2050.1,2.0]
[1617374690419,15.8966,2051.8,2051.0,2.90695]
[1617374692322,4.74985,2051.1,2051.0,2.90695]
[1617374692520,4.74985,2051.1,2050.1,2.0]
[1617374694422,1.8429,2051.1,2050.7,2.90695]
[1617374696323,2.90695,2050.8,2050.7,2.90695]
[1617374698124,13.9536,2051.8,2050.7,2.90695]
[1617374698326,2.90695,2051.3,2051.2,2.90695]
[1617374698525,2.90695,2051.3,2051.2,4.27215]
[1617374699126,13.9536,2051.8,2051.2,6.27215]
[1617374699326,13.9536,2051.8,2051.2,7.25625]
[1617374700428,13.9536,2051.8,2051.7,6.31235]
[1617374700629,12.9804,2051.8,2051.7,6.31235]
[1617374701128,11.9903,2051.8,2051.7,6.31235]
[1617374702131,11.9903,2051.8,2051.7,4.90695]
[1617374702732,11.5101,2051.8,2051.7,4.90695]
[1617374704032,11.0203,2051.8,2051.7,4.90695]
[1617374705033,11.0203,2051.8,2051.7,5.87575]
[1617374705334,11.0203,2051.8,2051.7,4.90695]
[1617374705940,10.8987,2051.8,2051.7,4.90695]
[1617374706137,10.5402,2051.8,2051.7,4.90695]
[1617374706337,10.5402,2051.8,2051.7,5.89435]
[1617374707139,9.5608,2051.8,2051.7,4.90695]
[1617374707339,59.5491,2051.8,2051.7,4.90695]
[1617374707540,58.5759,2051.8,2051.7,4.90695]
[1617374708040,54.6869,2051.8,2051.7,5.88715]
[1617374708240,53.2359,2051.8,2051.7,5.88715]
[1617374708442,52.4985,2051.8,2051.7,5.88715]
[1617374708640,52.4541,2051.8,2051.7,5.88715]
[1617374708841,52.2112,2051.8,2051.7,5.88715]
[1617374709046,50.2602,2051.8,2051.7,5.88715]
[1617374709245,46.375,2051.8,2051.7,35.88715]
[1617374709446,45.3788,2051.8,2051.7,35.88715]
[1617374709647,38.7355,2051.8,2051.7,35.88715]
[1617374709846,34.4185,2051.8,2051.7,35.88715]
[1617374710046,34.029,2051.8,2051.7,35.88715]
[1617374710247,33.5412,2051.8,2051.7,35.88715]
[1617374710447,32.5623,2051.8,2051.7,35.88715]
[1617374710647,14.2383,2054.2,2051.7,35.88715]
[1617374710847,12.0692,2054.2,2051.7,35.88715]
[1617374711050,12.0692,2054.2,2052.2,72.8349]
[1617374711249,9.1622,2054.2,2052.3,2.0]
[1617374711448,8.2604,2054.2,2052.3,32.0]
[1617374711649,7.8333,2054.2,2052.3,32.0]
[1617374711850,7.085,2054.2,2052.3,32.0]
[1617374712051,2.669,2054.2,2052.3,32.0]
[1617374712249,14.0,2055.5,2052.3,32.0]
[1617374712449,14.0,2055.5,2055.4,2.90695]
[1617374714049,14.0,2055.5,2053.4,0.9762]
[1617374714451,14.0,2055.5,2053.2,71.6727]
[1617374714650,43.0268,2055.5,2054.3,2.90695]
[1617374714852,2.0,2055.4,2054.3,2.90695]
[1617374715452,13.0268,2055.5,2054.3,2.90695]
[1617374715652,13.0268,2055.5,2054.3,4.39225]
[1617374716053,13.0268,2055.5,2054.4,2.0]
[1617374716454,13.0268,2055.5,2055.2,2.90695]
[1617374716655,13.0268,2055.5,2055.2,4.43335]
[1617374718659,2.90695,2055.3,2055.2,2.90695]
[1617374719462,2.90695,2055.3,2055.2,3.87415]
[1617374719665,2.90695,2055.3,2055.2,2.90695]
[1617374720261,2.16765,2055.3,2055.2,2.90695]
[1617374720661,13.0268,2055.5,2055.2,2.90695]
[1617374721664,12.0536,2055.5,2055.2,2.90695]
[1617374721865,12.0536,2055.5,2055.2,4.90695]
[1617374722665,2.90695,2055.4,2055.2,4.90695]
[1617374723266,12.0536,2055.5,2055.2,4.90695]
[1617374723466,12.0536,2055.5,2055.3,57.1358]
[1617374723666,11.0874,2055.5,2055.4,2.0]
[1617374724567,10.3506,2055.5,2055.4,2.0]
[1617374724767,13.9358,2057.2,2055.4,2.0]
[1617374726570,13.9358,2057.2,2057.0,2.90695]
[1617374726768,13.9358,2057.2,2057.0,4.65975]
[1617374728570,12.9626,2057.2,2057.0,4.65975]
[1617374729173,11.9996,2057.2,2057.0,4.65975]
[1617374729572,11.4256,2057.2,2057.0,4.65975]
[1617374729972,1.4995,2057.2,2057.0,4.65975]
[1617374730272,13.0188,2057.3,2057.0,4.65975]
[1617374730471,11.0982,2057.3,2057.0,4.65975]
[1617374731773,1.95544331,2057.7,2057.0,4.65975]
[1617374732776,1.95544331,2057.7,2057.6,4.78855]
[1617374733175,2.0,2060.0,2057.6,4.78855]
[1617374733383,2.0,2060.0,2057.9,74.5157]
[1617374733577,0.25365567,2059.9,2057.9,74.5157]
[1617374734278,2.0,2060.0,2057.9,74.5157]
[1617374734477,2.42934257,2060.2,2057.9,74.5157]
[1617374734678,2.0,2061.2,2058.7,2.90695]
[1617374734878,33.41095468,2061.3,2058.7,2.90695]
[1617374735077,33.41095468,2061.3,2058.7,4.15385]
[1617374735078,0.25363215,2061.2,2058.7,4.15385]
[1617374735680,1.71388683,2061.3,2058.7,4.15385]
[1617374736277,0.02,2061.0,2058.7,4.15385]
[1617374736678,0.02,2061.0,2059.2,4.40825]
[1617374737278,1.71388683,2061.3,2059.2,4.40825]
[1617374737878,1.71388683,2061.3,2059.5,69.0161]
[1617374738279,0.02,2061.1,2059.5,69.0161]
[1617374738682,0.02,2061.1,2060.4,2.90695]
[1617374738881,0.02,2061.1,2060.4,1.8841]
[1617374739081,4.14200247,2061.3,2060.4,1.8841]
[1617374739880,4.14200247,2061.3,2059.2,1.5013]
[1617374740080,5.58390247,2061.3,2058.6,57.5787]
[1617374740680,12.26370712,2061.2,2059.5,2.90695]
[1617374740880,26.43550712,2061.2,2059.5,2.90695]
[1617374741081,58.1185,2061.2,2058.6,57.5787]
[1617374741483,60.1185,2061.2,2058.6,57.5787]
[1617374741684,58.1185,2061.2,2058.6,57.5787]
[1617374742686,57.1453,2061.2,2059.4,2.90695]
[1617374743086,27.1453,2061.2,2059.4,2.90695]
[1617374743286,25.2126,2061.2,2059.4,2.90695]
[1617374744787,2.90695,2059.5,2059.4,2.90695]
[1617374746888,2.42860428,2060.9,2059.4,2.90695]
[1617374746889,25.2126,2061.2,2059.4,2.90695]
[1617374748790,25.2126,2061.2,2058.9,1.6464]
[1617374749389,25.2126,2061.2,2058.9,2.6088]
[1617374749590,24.2394,2061.2,2058.9,2.6088]
[1617374749789,25.8593,2061.2,2058.9,1.6464]
[1617374750193,25.8593,2061.2,2058.6,57.5787]
[1617374750390,55.8593,2061.2,2058.6,57.5787]
[1617374750590,56.8263,2061.2,2058.6,57.5787]
[1617374750790,56.8263,2061.2,2057.0,2.0]
[1617374750791,56.8263,2061.2,2058.8,2.90695]
[1617374750992,54.7244,2061.1,2058.8,2.90695]
[1617374751191,30.0,2061.0,2058.8,2.90695]
[1617374752797,30.0,2061.0,2059.3,2.90695]
[1617374753197,30.0,2061.0,2057.7,0.9817]
[1617374753397,30.9682,2061.0,2057.5,78.6166]
[1617374754200,2.0,2060.9,2057.5,78.6166]
[1617374754400,30.0,2060.8,2057.5,78.6166]
[1617374754601,2.0,2060.7,2057.5,78.6166]
[1617374754801,2.90695,2058.3,2058.1,2.90695]
[1617374755200,61.5617,2059.8,2058.1,2.90695]
[1617374756003,13.8076,2059.7,2058.1,2.90695]
[1617374756602,12.8344,2059.7,2058.1,2.90695]
[1617374756803,12.8344,2059.7,2058.6,2.90695]
[1617374757807,42.8344,2059.7,2058.6,2.90695]
[1617374758808,12.8344,2059.7,2059.2,2.90695]
[1617374760810,2.90695,2059.3,2059.2,2.90695]
[1617374761611,2.90695,2059.3,2058.3,1.4013]
[1617374761612,2.90695,2059.3,2057.7,1.8318]
[1617374761811,32.90695,2059.3,2057.6,2.0]
[1617374762412,2.0,2059.2,2056.6,79.5721]
[1617374762812,2.90695,2057.5,2057.2,2.90695]
[1617374763012,4.86425,2057.5,2057.2,2.90695]
[1617374763616,3.89105,2057.5,2055.2,0.9839]
[1617374764016,33.89105,2057.5,2055.4,75.5447]
[1617374764623,35.89105,2057.5,2055.4,75.5447]
[1617374764820,2.90695,2056.2,2055.7,2.90695]
[1617374765020,4.34225,2056.2,2055.7,2.90695]
[1617374766817,4.34225,2056.2,2056.1,2.90695]
[1617374767820,4.34225,2056.2,2054.6,0.9635]
[1617374768821,1.4353,2056.2,2055.9,2.90695]
[1617374769624,0.4652,2056.2,2054.6,1.9223]
[1617374770427,101.1894,2057.0,2054.6,1.9223]
[1617374770825,101.1894,2057.0,2056.1,2.90695]
[1617374771025,30.0,2057.0,2056.1,2.90695]
[1617374771926,13.6842,2056.9,2056.1,2.90695]
[1617374772126,14.9748,2056.9,2056.1,2.90695]
[1617374772828,14.9748,2056.9,2056.5,2.90695]
[1617374773228,13.6842,2056.9,2056.5,2.90695]
[1617374774628,13.6842,2056.9,2056.5,2.48255]
[1617374774928,13.6842,2056.9,2056.8,2.90695]
[1617374776731,12.7141,2056.9,2056.8,2.90695]
[1617374777731,5.098,2063.8,2056.8,2.90695]
[1617374777931,3.71388683,2061.3,2056.8,4.90695]
[1617374778132,2.0,2060.5,2056.9,79.0941]
[1617374778333,30.0,2059.8,2056.9,79.0941]
[1617374778732,0.2576677,2059.7,2056.9,79.0941]
[1617374778932,0.2576677,2059.7,2058.5,2.90695]
[1617374779333,30.0,2059.8,2058.5,2.90695]
[1617374779532,30.0,2059.8,2057.0,0.983]
[1617374779732,30.0,2059.8,2056.9,79.0941]
[1617374779733,13.6669,2059.7,2056.9,79.0941]
[1617374780533,43.6669,2059.7,2056.9,79.0941]
[1617374780936,43.6669,2059.7,2058.5,2.90695]
[1617374782934,2.90695,2058.6,2058.5,2.90695]
[1617374783735,1.93685,2058.6,2058.5,2.90695]
[1617374784134,3.16485,2058.6,2057.0,0.9682]
[1617374784336,3.16485,2058.6,2056.4,2.0]
[1617374784537,13.0255,2058.5,2056.4,2.0]
[1617374784938,13.0255,2058.5,2058.0,2.90695]
[1617374786741,13.0255,2058.5,2058.0,3.88595]
[1617374786941,13.0255,2058.5,2058.4,2.90695]
[1617374789944,43.0255,2058.5,2057.1,70.8674]
[1617374790146,44.7117,2058.5,2057.1,0.9655]
[1617374790744,43.7416,2058.5,2057.1,0.9655]
[1617374790944,43.7416,2058.5,2058.1,2.90695]
[1617374791345,42.0554,2058.5,2058.1,2.90695]
[1617374793048,4.19595,2058.4,2058.1,2.90695]
[1617374793744,34.19595,2058.4,2058.1,2.90695]
[1617374794545,34.19595,2058.4,2057.1,0.9655]
[1617374794747,34.19595,2058.4,2056.1,2.0]
[1617374794945,31.289,2058.4,2057.2,2.90695]
[1617374795345,31.289,2058.4,2054.5,30.0]
[1617374795746,31.289,2058.4,2054.3,30.0]
[1617374795947,33.289,2058.4,2054.3,30.0]
[1617374796147,33.289,2058.4,2055.1,2.0]
[1617374796345,33.289,2058.4,2054.4,2.0]
[1617374797046,33.289,2058.4,2057.0,2.90695]
[1617374797647,32.3189,2058.4,2057.0,2.90695]
[1617374797846,32.3189,2058.4,2055.2,1.2941]
[1617374798248,32.3189,2058.4,2055.7,1.4124]
[1617374798848,30.3189,2058.4,2056.1,2.0]
[1617374799049,30.3189,2058.4,2057.9,2.90695]
[1617374799463,30.3189,2058.4,2056.2,1.83]
[1617374799666,30.3189,2058.4,2052.1,4.64643339]
[1617374799907,70.457,2058.1,2055.6,2.0]
[1617374800049,72.457,2058.1,2054.4,99.0908]
[1617374800249,2.0,2057.9,2054.4,99.0908]
[1617374800649,2.0,2057.7,2054.4,69.0908]
[1617374800850,2.0,2057.7,2054.5,2.0]
[1617374801050,30.0,2057.6,2055.8,2.90695]
[1617374801250,2.0,2057.5,2055.8,3.88805]
[1617374801682,3.301,2057.4,2055.8,3.88805]
[1617374801852,1.301,2057.4,2055.8,3.88805]
[1617374802654,31.301,2057.4,2055.8,3.88805]
[1617374803152,31.301,2057.4,2056.9,2.90695]
[1617374803353,1.301,2057.4,2056.9,2.90695]
[1617374803553,30.0,2058.0,2056.9,2.90695]
[1617374804155,30.0,2057.6,2056.9,2.90695]
[1617374804754,29.0299,2057.6,2056.1,1.8106]
[1617374804954,30.6952,2057.6,2055.8,67.2347]
[1617374805154,1.4093,2056.7,2056.0,2.90695]
[1617374807054,1.4093,2056.7,2055.8,0.9811]
[1617374807055,1.4093,2056.7,2056.3,2.90695]
[1617374809057,2.90695,2056.4,2056.3,2.90695]
[1617374811260,31.93685,2056.4,2056.3,2.90695]
[1617374811460,33.89405,2056.4,2056.3,2.90695]
[1617374811660,32.92395,2056.4,2056.3,2.90695]
[1617374811863,32.92395,2056.4,2054.4,2.571]
[1617374812262,32.92395,2056.4,2054.4,4.571]
[1617374812663,13.8055,2056.3,2054.4,4.571]
[1617374813061,13.8055,2056.3,2056.1,2.90695]
[1617374814763,44.8354,2056.3,2056.1,2.90695]
[1617374815164,2.90695,2056.2,2056.1,2.90695]
[1617374816165,13.8055,2056.3,2056.1,2.90695]
[1617374817166,79.1859,2058.1,2056.1,3.88595]
[1617374817365,13.4321,2058.0,2056.1,5.84615]
[1617374817567,13.4321,2058.0,2056.3,69.9938]
[1617374817768,11.4088,2058.0,2056.3,71.9938]
[1617374817966,0.965,2058.0,2056.3,71.9938]
[1617374818166,0.6665,2058.0,2056.3,71.9938]
[1617374818366,0.4479,2058.0,2056.3,71.9938]
[1617374818767,13.2819,2058.5,2056.3,71.9938]
[1617374819166,13.2819,2058.5,2058.4,4.32185]
[1617374820170,13.2819,2058.5,2058.4,5.29115]
[1617374821170,13.2819,2058.5,2058.4,4.32185]
[1617374821371,13.2819,2058.5,2058.4,2.90695]
[1617374821570,13.2819,2058.5,2058.4,4.41985]
[1617374821770,12.3161,2058.5,2058.4,4.41985]
[1617374823369,12.3161,2058.5,2058.4,6.41985]
[1617374823570,12.3161,2058.5,2058.4,4.41985]
[1617374823773,12.0467,2058.5,2058.4,4.41985]
[1617374824475,12.0467,2058.5,2058.4,6.41985]
[1617374824874,11.8013,2058.5,2058.4,6.41985]
[1617374825074,11.8013,2058.5,2058.4,4.41985]
[1617374825274,11.8013,2058.5,2058.4,2.90695]
[1617374825474,41.8013,2058.5,2058.4,2.90695]
[1617374825674,42.6605,2058.5,2058.4,2.90695]
[1617374825876,42.6605,2058.5,2056.5,77.6321]
[1617374826075,42.6605,2058.5,2055.2,3.5524]
[1617374826276,2.0,2058.4,2055.2,2.571]
[1617374826476,2.0,2058.1,2055.2,2.571]
[1617374827075,2.0,2058.1,2055.3,2.0]
[1617374827276,2.0,2058.1,2057.1,2.90695]
[1617374827876,32.0,2058.1,2057.1,2.90695]
[1617374829177,32.0,2058.1,2057.5,2.90695]
[1617374829577,30.0,2058.1,2057.5,2.90695]
[1617374830478,30.0,2058.1,2056.1,63.6396]
[1617374830878,30.0,2058.3,2056.1,63.6396]
[1617374831079,30.0,2058.0,2056.1,63.6396]
[1617374831280,30.0,2058.0,2057.8,2.90695]
[1617374831479,30.0,2058.3,2057.8,2.90695]
[1617374831678,30.0,2058.0,2057.8,2.90695]
[1617374832078,30.0,2058.0,2056.1,63.6396]
[1617374832279,31.6513,2058.0,2056.1,63.6396]
[1617374832680,30.6812,2058.0,2056.1,63.6396]
[1617374832880,32.6812,2058.0,2056.1,63.6396]
[1617374833080,32.6812,2058.0,2056.1,61.6396]
[1617374833280,32.6812,2058.0,2056.8,2.90695]
[1617374833480,32.6812,2058.0,2056.1,61.6396]
[1617374833681,32.6812,2058.0,2054.8,2.0]
[1617374833880,68.7771,2057.8,2054.2,55.7634]
[1617374834080,70.7771,2057.8,2054.2,55.7634]
[1617374834284,70.7771,2057.8,2054.7,2.0]
[1617374835081,70.7771,2057.8,2055.3,2.0]
[1617374835281,70.7771,2057.8,2056.7,2.90695]
[1617374835681,29.0299,2057.7,2056.7,2.90695]
[1617374836483,2.0,2057.6,2056.7,2.90695]
[1617374837082,29.0299,2057.7,2056.7,2.90695]
[1617374837284,2.90695,2056.8,2056.7,2.90695]
[1617374838584,31.93685,2056.8,2056.7,2.90695]
[1617374839387,2.90695,2056.8,2056.7,2.90695]
[1617374839596,30.0,2057.3,2056.7,2.90695]
[1617374839990,30.0,2057.3,2056.7,4.41735]
[1617374840991,30.0,2057.3,2056.7,2.90695]
[1617374841193,2.90695,2056.8,2056.7,2.90695]
[1617374841792,1.93665,2056.8,2056.7,2.90695]
[1617374842993,1.93665,2056.8,2055.9,0.9824]
[1617374843195,1.93665,2056.8,2055.2,2.571]
[1617374843393,3.5527,2057.1,2055.0,200.0]
[1617374843394,2.90695,2056.0,2055.0,200.0]
[1617374843595,2.0,2055.9,2055.0,200.0]
[1617374843793,32.0,2055.9,2055.0,200.0]
[1617374845397,34.19395,2055.1,2055.0,200.0]
[1617374846798,33.64555,2055.1,2055.0,200.0]
[1617374847401,33.64555,2055.1,2055.0,202.90695]
[1617374848698,32.67525,2055.1,2055.0,202.90695]
[1617374849908,32.67525,2055.1,2055.0,203.88565]
[1617374850101,32.67525,2055.1,2055.0,202.90695]
[1617374851402,32.67525,2055.1,2055.0,200.0]
[1617374855710,31.70495,2055.1,2055.0,200.0]
[1617374856311,33.70495,2055.1,2055.0,200.0]
[1617374858613,31.70495,2055.1,2055.0,200.0]
[1617374859051,30.41795,2055.1,2055.0,200.0]
[1617374861516,30.41795,2055.1,2055.0,202.90695]
[1617374862016,0.41795,2055.1,2055.0,202.90695]
[1617374862417,0.41795,2055.1,2055.0,200.0]
[1617374862617,30.41795,2055.1,2055.0,200.0]
[1617374862817,29.44765,2055.1,2055.0,200.0]
[1617374863517,32.3546,2055.1,2055.0,200.0]
[1617374867822,46.3546,2055.1,2055.0,200.0]
[1617374869121,16.90695,2055.1,2055.0,200.0]
[1617374869722,16.90695,2055.1,2055.0,201.2181]
[1617374869924,14.0,2055.1,2055.0,201.2181]
[1617374871928,13.0229,2055.1,2055.0,201.2181]
[1617374873830,12.5845,2055.1,2055.0,201.2181]
[1617374874031,12.0401,2055.1,2055.0,201.2181]
[1617374875932,11.9152,2055.1,2055.0,201.2181]
[1617374876134,11.6425,2055.1,2055.0,203.2181]
[1617374876334,11.5451,2055.1,2055.0,203.2181]
[1617374876534,11.0638,2055.1,2055.0,203.2181]
[1617374876933,9.3596,2055.1,2055.0,203.2181]
[1617374877133,8.3859,2055.1,2055.0,203.2181]
[1617374879441,7.4105,2055.1,2055.0,203.2181]
[1617374880240,6.3298,2055.1,2055.0,203.2181]
[1617374880739,6.0908,2055.1,2055.0,203.2181]
[1617374880941,5.7449,2055.1,2055.0,203.2181]
[1617374881742,4.1867,2055.1,2055.0,203.2181]
[1617374881941,3.4457,2055.1,2055.0,203.2181]
[1617374882742,2.4757,2055.1,2055.0,202.0]
[1617374883541,1.494,2055.1,2055.0,203.6891]
[1617374883745,0.5237,2055.1,2055.0,203.6891]
[1617374883942,9.3213,2055.6,2055.0,203.6891]
[1617374884148,8.5953,2055.6,2055.0,203.6891]
[1617374884643,7.9321,2055.6,2055.0,203.6891]
[1617374884843,7.481,2055.6,2055.0,203.6891]
[1617374885044,12.0,2055.1,2055.0,203.6891]
[1617374885844,10.5359,2055.1,2055.0,203.6891]
[1617374886045,10.3502,2055.1,2055.0,203.6891]
[1617374886247,6.9667,2055.1,2055.0,203.6891]
[1617374886446,4.9544,2055.1,2055.0,203.6891]
[1617374886646,2.8399,2055.1,2055.0,203.6891]
[1617374886846,0.7144,2055.1,2055.0,203.6891]
[1617374887246,0.5495,2055.1,2055.0,203.6891]
[1617374887447,30.0,2058.2,2055.0,203.6891]
[1617374887646,30.0,2058.2,2057.9,2.90695]
[1617374887848,43.7001,2058.2,2057.9,2.90695]
[1617374888247,13.7001,2058.2,2057.9,2.90695]
[1617374888447,13.7001,2058.2,2057.9,4.32605]
[1617374889548,13.7001,2058.2,2057.9,2.89695]
[1617374890549,13.7001,2058.2,2057.9,3.85925]
[1617374890949,12.7298,2058.2,2057.9,3.85925]
[1617374891750,12.7298,2058.2,2057.9,2.89695]
[1617374892751,42.7298,2058.2,2057.9,2.89695]
[1617374892951,44.4687,2058.2,2057.0,3.5556]
[1617374893653,47.37565,2058.2,2057.6,2.90695]
[1617374894251,17.37565,2058.2,2057.6,2.90695]
[1617374895753,2.90695,2057.7,2057.6,2.90695]
[1617374895953,4.22075,2057.7,2057.6,2.90695]
[1617374896753,1.3138,2057.7,2057.6,2.90695]
[1617374897555,31.3138,2057.7,2057.0,4.5213]
[1617374897755,31.3138,2057.7,2057.3,2.90695]
[1617374897954,30.3435,2057.7,2057.3,2.15055]
[1617374898154,30.3435,2057.7,2055.1,71.8628]
[1617374898354,30.3435,2057.7,2055.8,3.5453]
[1617374898755,2.0,2057.6,2055.8,3.5453]
[1617374898958,2.0,2057.6,2055.8,4.5294]
[1617374899357,30.3435,2057.7,2055.8,2.571]
[1617374899757,30.3435,2057.7,2056.1,2.90695]
[1617374900857,30.0,2057.5,2056.1,2.90695]
[1617374901858,30.0,2057.5,2056.8,2.90695]
[1617374903760,2.90695,2056.9,2056.8,2.90695]
[1617374904162,2.90695,2056.9,2056.4,0.9726]
[1617374904360,2.90695,2056.9,2055.8,3.5323]
[1617374904560,32.90695,2056.9,2055.8,2.571]
[1617374904861,31.93665,2056.9,2055.8,2.571]
[1617374905365,31.93665,2056.9,2055.7,0.9622]
[1617374905560,31.93665,2056.9,2055.1,71.8628]
[1617374905768,30.0,2056.9,2055.9,2.90695]
[1617374905967,30.0,2056.9,2055.9,3.88635]
[1617374906165,30.0,2056.9,2055.9,0.9794]
[1617374906966,30.0,2056.9,2055.1,71.8628]
[1617374907170,30.0,2056.9,2054.7,0.9878]
[1617374907367,30.0,2056.9,2054.1,0.9814]
[1617374907566,30.0,2056.8,2054.1,0.9814]
[1617374907768,2.90695,2055.1,2055.0,202.90695]
[1617374910868,2.90695,2055.1,2055.0,200.0]
[1617374913272,2.90695,2055.1,2055.0,199.0]
[1617374913873,2.90695,2055.1,2055.0,201.90695]
[1617374914383,32.90695,2055.1,2055.0,201.90695]
[1617374915975,32.90695,2055.1,2055.0,199.0]
[1617374916576,34.56745,2055.1,2055.0,199.0]
[1617374917579,32.90695,2055.1,2055.0,199.0]
[1617374918979,32.90695,2055.1,2055.0,199.9607]
[1617374919181,32.90695,2055.1,2055.0,199.0]
[1617374919585,32.90695,2055.1,2055.0,197.7937]
[1617374919781,34.90695,2055.1,2055.0,196.8367]
[1617374920181,34.90695,2055.1,2055.0,196.621]
[1617374920882,32.90695,2055.1,2055.0,196.621]
[1617374921082,32.90695,2055.1,2055.0,195.638]
[1617374921281,32.90695,2055.1,2055.0,194.674]
[1617374921481,34.90695,2055.1,2055.0,194.674]
[1617374925989,34.90695,2055.1,2055.0,192.729]
[1617374927193,34.90695,2055.1,2055.0,188.786]
[1617374928294,34.90695,2055.1,2055.0,187.8209]
[1617374928494,34.90695,2055.1,2055.0,187.5758]
[1617374928997,34.90695,2055.1,2055.0,170.1149]
[1617374929196,34.90695,2055.1,2055.0,161.5911]
[1617374929596,34.90695,2055.1,2055.0,160.9714]
[1617374930204,34.90695,2055.1,2055.0,160.8955]
[1617374930397,34.90695,2055.1,2055.0,159.4068]
[1617374930999,34.90695,2055.1,2055.0,156.97085965]
[1617374931598,32.90695,2055.1,2055.0,156.97085965]
[1617374932201,32.90695,2055.1,2055.0,156.35975965]
[1617374932618,32.90695,2055.1,2055.0,153.70275965]
[1617374932816,34.90695,2055.1,2055.0,153.46785965]
[1617374935909,34.90695,2055.1,2055.0,152.50125965]
[1617374938210,34.90695,2055.1,2055.0,150.06540107]
[1617374940412,32.90695,2055.1,2055.0,149.84280107]
[1617374941411,32.90695,2055.1,2055.0,149.82280107]